bitfinex-derivatives/quotes_SOLF0:USTF0_20250421
["timestamp","ask_amount","ask_price","bid_price","bid_amount"]
[1745216570599,33.68572151,141.24,141.21,7.12721968]
[1745216570799,31.82122151,141.24,141.21,7.12721968]
[1745216572193,29.94802151,141.24,141.22,7.0816]
[1745216572597,28.00622151,141.24,141.22,7.0816]
[1745216573097,35.08702151,141.24,141.21,0.04531968]
[1745216574594,0.04622151,141.24,141.21,0.04531968]
[1745216574799,0.04622151,141.24,141.21,6.11413159]
[1745216575499,0.04622151,141.24,141.22,7.0817]
[1745216575898,0.04622151,141.24,141.21,6.11413159]
[1745216576198,0.04622151,141.24,141.22,7.0817]
[1745216577698,0.04622151,141.24,141.23,7.0812]
[1745216581902,0.04622151,141.24,141.22,7.0815]
[1745216582107,0.04622151,141.24,141.21,0.04531968]
[1745216582702,7.12722151,141.24,141.21,0.04531968]
[1745216583105,0.04622151,141.24,141.21,0.04531968]
[1745216583808,7.0815,141.23,141.21,0.04531968]
[1745216584303,34.02881191,141.23,141.21,0.04531968]
[1745216584497,37.87341191,141.23,141.21,0.04531968]
[1745216584902,7.0817,141.22,141.21,0.04531968]
[1745216585305,37.87341191,141.23,141.21,0.04531968]
[1745216585505,44.95481191,141.23,141.21,0.04531968]
[1745216585702,31.8046,141.23,141.21,0.04531968]
[1745216585906,29.844,141.23,141.21,0.04531968]
[1745216586106,27.96,141.23,141.22,13.15051191]
[1745216586306,0.04622151,141.24,141.22,6.06881191]
[1745216586709,0.04622151,141.24,141.23,7.0812]
[1745216592208,29.844,141.29,141.22,6.06881191]
[1745216592408,27.96,141.29,141.26,6.06881191]
[1745216592810,1.9886,141.31,141.27,7.0787]
[1745216593113,27.96,141.32,141.28,6.06881191]
[1745216593314,0.0473441,141.3,141.29,7.0778]
[1745216594216,0.0473441,141.3,141.28,13.19772288]
[1745216594811,0.0473441,141.3,141.28,6.11922288]
[1745216595915,0.0473441,141.3,141.28,7.12871097]
[1745216596210,0.0473441,141.3,141.28,0.05041097]
[1745216597108,0.0473441,141.3,141.28,7.12901097]
[1745216599418,0.0473441,141.3,141.29,7.0782]
[1745216599715,0.0473441,141.3,141.28,6.11922288]
[1745216600920,7.1250441,141.3,141.28,0.05041097]
[1745216603518,7.0782,141.29,141.28,0.05041097]
[1745216611219,7.0794,141.27,141.24,6.06881191]
[1745216611919,7.0794,141.27,141.24,13.14911191]
[1745216612420,7.12861758,141.27,141.24,13.19883045]
[1745216613422,7.12861758,141.27,141.24,7.13001854]
[1745216613617,0.04921758,141.27,141.24,0.04971854]
[1745216613823,6.06881191,141.25,141.24,0.04971854]
[1745216614123,6.06881191,141.25,141.19,6.06881191]
[1745216614321,27.92,141.24,141.19,6.06881191]
[1745216614618,13.15031191,141.23,141.19,7.083]
[1745216615121,13.15031191,141.23,141.19,13.15181191]
[1745216615322,0.04908515,141.22,141.2,0.04571198]
[1745216620234,0.04908515,141.22,141.2,7.12841198]
[1745216621132,0.04908515,141.22,141.2,0.04571198]
[1745216623931,7.13078515,141.22,141.2,0.04571198]
[1745216624931,0.04908515,141.22,141.2,0.04571198]
[1745216626134,7.13098515,141.22,141.2,0.04571198]
[1745216631034,13.15101191,141.21,141.2,0.04571198]
[1745216636936,7.0835,141.19,141.14,6.06881191]
[1745216637135,41.07231191,141.19,141.13,27.92]
[1745216637436,41.07231191,141.19,141.15,6.06881191]
[1745216637935,0.0543376,141.18,141.15,6.06881191]
[1745216638235,0.0543376,141.18,141.16,7.0847]
[1745216639738,0.0543376,141.18,141.15,13.15371191]
[1745216640737,0.0543376,141.18,141.16,7.0845]
[1745216641339,0.0543376,141.18,141.15,13.15381191]
[1745216644141,7.1380376,141.18,141.15,13.15381191]
[1745216644640,20.9580376,141.18,141.15,13.15381191]
[1745216645845,20.9580376,141.18,141.15,7.085]
[1745216646341,7.0842,141.17,141.13,13.15451191]
[1745216646738,19.94314951,141.18,141.13,13.15451191]
[1745216647134,6.06881191,141.14,141.03,62.0]
[1745216647440,6.06881191,141.12,141.06,6.06881191]
[1745216647742,0.05095054,141.1,141.08,7.0884]
[1745216648642,0.05095054,141.1,141.06,6.06881191]
[1745216649042,0.05095054,141.1,141.06,13.15841191]
[1745216649242,34.03976245,141.1,141.06,6.06881191]
[1745216649540,34.03976245,141.1,141.04,36.02561191]
[1745216649843,34.03976245,141.1,141.04,6.06881191]
[1745216650233,7.089,141.08,141.04,13.15941191]
[1745216650437,7.089,141.08,141.04,6.06881191]
[1745216651242,7.0884,141.09,141.04,6.06881191]
[1745216652142,7.0884,141.09,141.04,13.15911191]
[1745216653243,7.0884,141.09,141.05,7.0901]
[1745216655042,7.0884,141.09,141.06,7.0897]
[1745216657245,27.97095054,141.1,141.06,6.06881191]
[1745216657944,34.03976245,141.1,141.06,6.06881191]
[1745216658339,34.03976245,141.1,141.07,7.0889]
[1745216659039,27.97095054,141.1,141.07,7.0889]
[1745216659646,35.05865054,141.1,141.07,7.0889]
[1745216662050,43.68865054,141.1,141.07,7.0889]
[1745216662347,36.60095054,141.1,141.08,7.0886]
[1745216663449,36.60095054,141.1,141.07,7.089]
[1745216663849,6.06881191,141.09,141.05,6.06881191]
[1745216664049,13.15701191,141.09,141.05,6.06881191]
[1745216664251,6.06881191,141.09,141.03,6.06881191]
[1745216664744,7.14338333,141.07,141.03,6.06881191]
[1745216665150,0.05418333,141.07,141.03,6.06881191]
[1745216665449,0.05418333,141.07,141.05,6.06881191]
[1745216665951,0.05418333,141.07,141.06,7.0897]
[1745216666849,0.05418333,141.07,141.05,6.06881191]
[1745216666850,0.05418333,141.07,141.05,13.15881191]
[1745216667051,0.05418333,141.07,141.05,7.09]
[1745216668053,0.05418333,141.07,141.06,7.0897]
[1745216668753,0.05418333,141.07,141.05,7.09]
[1745216670455,0.05418333,141.07,141.06,7.0897]
[1745216671255,0.05418333,141.07,141.05,6.06881191]
[1745216672554,0.05418333,141.07,141.06,7.0897]
[1745216677860,0.05418333,141.07,141.05,13.15881191]
[1745216678256,0.05418333,141.07,141.05,6.06881191]
[1745216678958,0.05418333,141.07,141.05,13.15861191]
[1745216679755,0.05418333,141.07,141.06,7.0897]
[1745216688363,27.92,141.13,141.05,33.98881191]
[1745216688570,27.92,141.14,141.09,6.06881191]
[1745216688867,35.006,141.14,141.09,6.06881191]
[1745216689163,35.006,141.14,141.1,7.0874]
[1745216689565,0.05285106,141.13,141.11,0.05234521]
[1745216690365,7.13935106,141.13,141.11,0.05234521]
[1745216690565,0.05285106,141.13,141.11,0.05234521]
[1745216691765,7.0867,141.12,141.11,0.05234521]
[1745216692662,7.0867,141.12,141.08,7.0884]
[1745216693065,13.15551191,141.12,141.08,7.0884]
[1745216693766,7.0873,141.11,141.07,13.15781191]
[1745216696573,6.06881191,141.12,141.06,13.15831191]
[1745216696574,7.0877,141.1,141.06,13.15831191]
[1745216696872,6.06881191,141.12,141.06,6.06881191]
[1745216697065,0.04576178,141.09,141.06,6.06881191]
[1745216698274,0.04576178,141.09,141.07,7.0889]
[1745216699373,0.04576178,141.09,141.06,6.06881191]
[1745216699374,0.04576178,141.09,141.08,7.0887]
[1745216702379,0.04576178,141.09,141.07,7.089]
[1745216706479,0.04576178,141.09,141.08,7.0887]
[1745216715894,0.04576178,141.09,141.07,7.089]
[1745216716095,0.04576178,141.09,141.05,6.06881191]
[1745216716394,7.13406178,141.09,141.03,6.06881191]
[1745216716590,0.04576178,141.09,141.03,6.06881191]
[1745216717093,7.13396178,141.09,141.03,6.06881191]
[1745216717292,7.13396178,141.09,141.05,6.06881191]
[1745216718193,7.13396178,141.09,141.05,13.15881191]
[1745216718894,7.13396178,141.09,141.06,7.0895]
[1745216719693,7.13396178,141.09,141.05,7.09]
[1745216720998,0.04576178,141.09,141.04,6.06881191]
[1745216721498,7.089,141.08,141.05,7.0901]
[1745216721692,7.089,141.08,141.04,6.06881191]
[1745216722094,13.15781191,141.08,141.05,7.0902]
[1745216722294,7.0892,141.07,141.04,6.06881191]
[1745216722693,27.86,141.07,141.02,6.06881191]
[1745216722997,7.09,141.06,141.02,6.06881191]
[1745216723195,7.14395968,141.06,141.02,6.06881191]
[1745216723995,7.14395968,141.06,141.0,27.86]
[1745216724196,7.14395968,141.06,141.02,6.06881191]
[1745216724697,7.14395968,141.06,141.02,13.16021191]
[1745216724997,7.0903,141.05,141.02,13.16021191]
[1745216725998,7.0903,141.05,141.02,6.06881191]
[1745216726497,7.0909,141.04,140.98,562.9749]
[1745216726697,8.12591191,141.06,141.0,6.06881191]
[1745216726997,0.05264917,141.02,141.0,6.06881191]
[1745216727197,0.05264917,141.02,141.0,13.16151191]
[1745216729702,0.05264917,141.02,141.01,7.0922]
[1745216736397,0.05264917,141.02,140.97,27.86]
[1745216736603,6.12146108,141.02,140.94,33.8179]
[1745216736903,13.21356108,141.02,140.97,6.06881191]
[1745216737402,13.21356108,141.02,140.94,33.8179]
[1745216737702,13.21356108,141.02,140.97,6.06881191]
[1745216738302,13.21356108,141.02,140.98,7.0935]
[1745216739405,0.05264917,141.02,140.99,7.0932]
[1745216739703,0.05264917,141.02,140.97,6.06881191]
[1745216740600,7.14444917,141.02,140.98,7.0934]
[1745216742805,7.0923,141.01,140.97,13.16281191]
[1745216743300,7.094,140.98,140.91,589.24]
[1745216743499,7.094,140.98,140.94,7.0953]
[1745216743702,0.05320718,140.96,140.94,7.0953]
[1745216743903,6.06881191,140.95,140.84,25.03609427]
[1745216744106,1.9879,140.94,140.84,25.03609427]
[1745216744607,0.04618248,140.91,140.84,25.03609427]
[1745216744806,33.26,140.9,140.84,25.03609427]
[1745216745003,37.2293,140.9,140.84,25.03609427]
[1745216745711,37.2293,140.9,140.85,14.41417666]
[1745216745902,0.04618248,140.91,140.87,6.06881191]
[1745216746607,10.07618248,140.91,140.87,6.06881191]
[1745216746904,10.07618248,140.91,140.85,8.34536475]
[1745216747109,10.07618248,140.91,140.88,6.06881191]
[1745216747408,10.07618248,140.91,140.87,9.52552007]
[1745216747609,10.07618248,140.91,140.89,9.52552007]
[1745216747811,10.07618248,140.91,140.9,9.52552007]
[1745216748202,36.22,140.98,140.9,9.52552007]
[1745216748203,36.22,140.98,140.9,16.62282007]
[1745216748405,36.22,140.98,140.9,9.52552007]
[1745216749112,36.22,140.98,140.9,16.62322007]
[1745216749411,0.04818401,140.95,140.93,0.0480206]
[1745216751707,36.22,141.02,140.94,9.52552007]
[1745216751904,2.055,141.03,140.99,7.0932]
[1745216752103,14.77,141.04,140.96,9.52552007]
[1745216752309,14.77,141.04,140.97,36.22]
[1745216752610,14.77,141.04,141.0,7.0926]
[1745216752810,0.04808898,141.02,140.99,0.04748511]
[1745216753613,0.04808898,141.02,141.01,7.0922]
[1745216754613,36.22,141.1,141.0,9.52552007]
[1745216754910,2.0296,141.11,141.03,9.52552007]
[1745216755110,2.0296,141.11,141.04,36.22]
[1745216755312,561.72,141.14,141.05,9.52552007]
[1745216755511,9.52552007,141.13,141.07,7.0891]
[1745216755705,0.04776685,141.11,141.08,0.05431634]
[1745216757514,9.57328692,141.11,141.08,0.05431634]
[1745216757714,16.66048692,141.11,141.08,0.05431634]
[1745216757913,9.57328692,141.11,141.08,0.05431634]
[1745216758617,9.57328692,141.11,141.09,7.0882]
[1745216759114,0.04776685,141.11,141.09,7.0882]
[1745216759314,0.04776685,141.11,141.08,0.05431634]
[1745216760317,9.57328692,141.11,141.08,0.05431634]
[1745216760914,16.66048692,141.11,141.01,13.57452007]
[1745216761115,16.61272007,141.11,141.01,13.57452007]
[1745216761319,36.22,141.1,141.06,7.0897]
[1745216761714,36.22,141.1,141.0,36.22]
[1745216761715,9.52552007,141.09,141.0,36.22]
[1745216762012,13.55108564,141.09,141.07,0.04712442]
[1745216762207,13.49842007,141.09,141.0,36.22]
[1745216762412,9.52552007,141.07,140.97,9.52552007]
[1745216762617,9.52552007,141.05,140.96,40.2306]
[1745216763119,9.52552007,141.05,141.02,7.0916]
[1745216763610,9.57802946,141.05,141.02,7.12820391]
[1745216765016,9.57802946,141.05,141.03,7.091]
[1745216768018,0.05250939,141.05,141.04,7.0907]
[1745216773920,0.05250939,141.05,141.03,7.091]
[1745216774122,9.57802946,141.05,141.02,0.03660391]
[1745216774622,9.57802946,141.05,141.03,7.0912]
[1745216775124,9.57802946,141.05,141.02,0.03660391]
[1745216775422,45.79802946,141.05,141.02,0.03660391]
[1745216777020,52.88832946,141.05,141.02,0.03660391]
[1745216777518,7.091,141.04,141.02,0.03660391]
[1745216777723,45.79802946,141.05,141.02,0.03660391]
[1745216778222,52.88832946,141.05,141.02,0.03660391]
[1745216779222,45.79802946,141.05,141.02,7.12830391]
[1745216780124,52.88822946,141.05,141.02,7.12830391]
[1745216781123,52.88822946,141.05,141.02,0.03660391]
[1745216782731,7.0907,141.04,141.02,0.03660391]
[1745216783126,45.79802946,141.05,141.02,0.03660391]
[1745216783625,7.0907,141.04,141.02,0.03660391]
[1745216783828,45.79802946,141.05,141.02,0.03660391]
[1745216784127,7.0907,141.04,141.02,0.03660391]
[1745216785527,52.88842946,141.05,141.02,0.03660391]
[1745216786729,36.27250939,141.05,141.02,0.03660391]
[1745216787625,43.36300939,141.05,141.02,0.03660391]
[1745216787929,36.27250939,141.05,141.02,0.03660391]
[1745216789229,7.0907,141.04,141.02,0.03660391]
[1745216789428,922.58,141.03,140.86,33.38145902]
[1745216789729,7.0956,140.95,140.89,7.0979]
[1745216789923,35.82,140.95,140.89,7.0979]
[1745216790121,35.82,140.95,140.86,33.38145902]
[1745216790721,0.04468544,140.92,140.86,33.38145902]
[1745216791829,0.04468544,140.92,140.89,7.098]
[1745216792434,0.04468544,140.92,140.86,33.38145902]
[1745216793334,0.04468544,140.92,140.91,7.0972]
[1745216796230,0.04468544,140.92,140.84,45.34552007]
[1745216796429,0.04468544,140.92,140.85,2.0012]
[1745216796632,0.04468544,140.92,140.85,5.925]
[1745216796827,0.04468544,140.92,140.9,7.0974]
[1745216799632,0.04468544,140.92,140.89,7.0981]
[1745216800932,0.04468544,140.92,140.9,7.0977]
[1745216801434,34.6,140.91,140.77,34.6]
[1745216801731,34.6,140.91,140.82,3.9189]
[1745216801931,41.6976,140.91,140.82,3.9189]
[1745216802131,0.04944562,140.88,140.82,3.9189]
[1745216802936,0.04944562,140.88,140.85,7.0998]
[1745216803729,0.04944562,140.88,140.82,13.44442007]
[1745216804232,0.04944562,140.88,140.87,7.0993]
[1745216804539,34.6,140.91,140.84,9.52552007]
[1745216804833,41.6975,140.91,140.87,7.0992]
[1745216805634,0.05048814,140.9,140.88,0.04694536]
[1745216807337,0.05048814,140.9,140.89,7.0983]
[1745216808338,0.05048814,140.9,140.88,7.14564536]
[1745216808538,0.05048814,140.9,140.88,0.04694536]
[1745216808938,0.05048814,140.9,140.89,7.0983]
[1745216810139,561.86,140.94,140.91,7.0969]
[1745216810337,34.62,140.95,140.91,7.0969]
[1745216810537,34.62,140.95,140.89,2.0113]
[1745216810735,34.62,140.95,140.89,9.1094]
[1745216810936,34.62,140.95,140.89,2.0113]
[1745216811136,34.62,140.95,140.85,36.6343]
[1745216811137,9.52552007,140.94,140.85,36.6343]
[1745216811341,0.05006391,140.93,140.91,0.05458357]
[1745216811639,0.05006391,140.93,140.91,0.04670193]
[1745216811833,7.14666391,140.93,140.91,0.04670193]
[1745216812744,7.0967,140.92,140.91,0.04670193]
[1745216820840,0.05006391,140.93,140.91,0.04670193]
[1745216821739,11.58,140.95,140.91,0.04670193]
[1745216821939,11.58,140.95,140.91,4.00520193]
[1745216822438,11.58,140.95,140.94,7.0957]
[1745216822743,33.36,140.99,140.94,7.0957]
[1745216822939,0.0458636,140.96,140.94,7.0957]
[1745216823146,0.0458636,140.96,140.94,7.14840832]
[1745216823843,0.0458636,140.96,140.95,7.0952]
[1745216838649,0.0458636,140.96,140.94,7.14830832]
[1745216838950,9.57138367,140.96,140.94,0.05270832]
[1745216839150,32.12,140.95,140.9,7.0975]
[1745216839750,7.096,140.94,140.9,7.0975]
[1745216840348,0.05033534,140.93,140.91,0.05023398]
[1745216842350,0.05033534,140.93,140.91,7.14743398]
[1745216842543,0.05033534,140.93,140.91,0.05023398]
[1745216842950,0.05033534,140.93,140.92,7.0967]
[1745216845250,9.9,140.95,140.94,7.0957]
[1745216845450,9.9,140.95,140.91,1.95603398]
[1745216846251,9.9,140.95,140.93,7.0961]
[1745216846450,0.04657374,140.94,140.93,7.0961]
[1745216866874,0.04657374,140.94,140.92,13.18823561]
[1745216867577,0.04657374,140.94,140.92,7.0965]
[1745216868882,0.04657374,140.94,140.91,0.05023398]
[1745216868883,0.04657374,140.94,140.91,7.14713398]
[1745216870078,0.04657374,140.94,140.92,7.0966]
[1745216872682,0.04657374,140.94,140.91,7.14723398]
[1745216874882,0.04657374,140.94,140.92,7.0967]
[1745216875182,0.04657374,140.94,140.91,0.05023398]
[1745216875385,0.04657374,140.94,140.91,7.14713398]
[1745216876984,0.04657374,140.94,140.92,7.0967]
[1745216878290,0.04657374,140.94,140.93,7.0962]
[1745216882793,0.04657374,140.94,140.92,13.18823561]
[1745216882989,0.04657374,140.94,140.92,7.0965]
[1745216884585,7.14247374,140.94,140.91,0.05023398]
[1745216884790,6.09173561,140.93,140.91,0.05023398]
[1745216886692,42.96657374,140.94,140.91,0.05023398]
[1745216887192,50.06267374,140.94,140.91,0.05023398]
[1745216888692,7.0963,140.93,140.91,0.05023398]
[1745216888891,42.96657374,140.94,140.91,0.05023398]
[1745216889094,7.0966,140.93,140.91,0.05023398]
[1745216889392,13.18833561,140.93,140.91,0.05023398]
[1745216890195,7.0967,140.92,140.91,0.05023398]
[1745216891196,7.0975,140.91,140.87,7.0991]
[1745216891502,6.09173561,140.91,140.86,6.09173561]
[1745216891795,6.09173561,140.91,140.88,7.0986]
[1745216892296,13.18913561,140.91,140.88,7.0986]
[1745216892487,13.23572581,140.91,140.88,7.15264155]
[1745216892691,13.23572581,140.91,140.88,0.05404155]
[1745216894797,7.0979,140.9,140.88,0.05404155]
[1745216896699,13.23582581,140.91,140.88,0.05404155]
[1745216899901,6.13832581,140.91,140.88,7.15274155]
[1745216900598,13.23562581,140.91,140.88,0.05404155]
[1745216910110,6.13832581,140.91,140.88,0.05404155]
[1745216910515,29.68,140.9,140.88,0.05404155]
[1745216911016,7.0983,140.89,140.88,0.05404155]
[1745216912616,13.19003561,140.89,140.88,0.05404155]
[1745216912916,7.0983,140.89,140.88,0.05404155]
[1745216914217,42.86973561,140.9,140.88,0.05404155]
[1745216918620,7.0983,140.89,140.88,0.05404155]
[1745216920521,7.0996,140.87,140.82,8.09073561]
[1745216921317,7.0996,140.87,140.84,7.1005]
[1745216921616,7.15376412,140.87,140.84,7.14384917]
[1745216925326,13.19153561,140.86,140.84,0.04334917]
[1745216925524,41.71153561,140.86,140.84,0.04334917]
[1745216927123,7.1003,140.85,140.84,0.04334917]
[1745216934227,34.61173561,140.86,140.84,0.04334917]
[1745216934526,28.52,140.86,140.84,0.04334917]
[1745216935228,34.61173561,140.86,140.84,0.04334917]
[1745216935425,7.1003,140.85,140.84,0.04334917]
[1745216936425,41.71163561,140.86,140.84,0.04334917]
[1745216937029,7.1003,140.85,140.84,0.04334917]
[1745216939031,34.61173561,140.86,140.84,0.04334917]
[1745216940132,34.61173561,140.86,140.84,7.14394917]
[1745216940735,34.61173561,140.86,140.84,0.04334917]
[1745216942334,41.71163561,140.86,140.84,0.04334917]
[1745216947742,35.6199,140.86,140.84,0.04334917]
[1745216948940,28.52,140.86,140.84,0.04334917]
[1745216949341,6.14589973,140.87,140.84,0.04334917]
[1745216949544,0.05416412,140.87,140.84,0.04334917]
[1745216950039,0.05416412,140.87,140.85,7.1]
[1745216955946,0.05416412,140.87,140.86,7.0998]
[1745216957552,0.05416412,140.87,140.86,13.19153561]
[1745216961349,0.05416412,140.87,140.86,7.0998]
[1745216962649,0.05416412,140.87,140.84,0.04334917]
[1745216963048,6.14589973,140.87,140.84,0.04334917]
[1745216963350,7.1001,140.86,140.84,0.04334917]
[1745216964752,13.19203561,140.85,140.84,0.04334917]
[1745216971060,7.1003,140.85,140.84,0.04334917]
[1745216975650,6.09173561,140.86,140.84,0.04334917]
[1745216975855,6.14589973,140.87,140.84,0.04334917]
[1745216976651,13.24549973,140.87,140.84,7.14404917]
[1745216977355,13.24549973,140.87,140.84,0.04334917]
[1745216977558,7.0999,140.86,140.84,0.04334917]
[1745216978855,13.24539973,140.87,140.84,7.14404917]
[1745216982458,6.14589973,140.87,140.84,7.14404917]
[1745216985759,6.14589973,140.87,140.85,7.1001]
[1745216991759,6.14589973,140.87,140.84,0.04334917]
[1745216992062,6.09173561,140.85,140.8,6.09173561]
[1745216992565,6.09173561,140.85,140.83,7.1012]
[1745216992965,6.13998066,140.85,140.83,7.1012]
[1745216993264,0.04824505,140.85,140.84,7.1008]
[1745216995261,0.04824505,140.85,140.84,13.19253561]
[1745216997162,11.67,140.87,140.86,13.19153561]
[1745217000669,11.62,140.89,140.86,6.09173561]
[1745217000866,34.37173561,140.93,140.88,6.09173561]
[1745217001058,28.28,140.93,140.88,6.09173561]
[1745217001263,34.37173561,140.96,140.9,6.09173561]
[1745217001760,0.04934801,140.94,140.93,7.0962]
[1745217022688,0.04934801,140.94,140.92,13.2376064]
[1745217022878,0.04934801,140.94,140.92,7.14587079]
[1745217023083,0.04934801,140.94,140.92,0.04927079]
[1745217023787,0.04934801,140.94,140.92,7.14587079]
[1745217024489,0.04934801,140.94,140.93,7.0962]
[1745217026494,0.04934801,140.94,140.92,7.14587079]
[1745217026688,6.09173561,140.93,140.92,0.04927079]
[1745217027087,13.18793561,140.93,140.92,0.04927079]
[1745217027893,4.04804801,140.94,140.92,0.04927079]
[1745217028094,0.04934801,140.94,140.92,0.04927079]
[1745217029497,7.14514801,140.94,140.92,0.04927079]
[1745217030196,13.18793561,140.93,140.92,0.04927079]
[1745217030995,7.0968,140.92,140.86,6.09173561]
[1745217031297,34.33173561,140.91,140.84,36.37243561]
[1745217031499,6.09173561,140.89,140.84,8.13243561]
[1745217031693,6.09173561,140.89,140.84,2.0407]
[1745217031996,6.09173561,140.89,140.85,7.1]
[1745217032197,0.05030853,140.88,140.85,7.15069117]
[1745217034598,7.14910853,140.88,140.85,7.15069117]
[1745217035698,0.05030853,140.88,140.85,7.15069117]
[1745217035997,0.05030853,140.88,140.85,0.05069117]
[1745217036388,0.05030853,140.88,140.86,7.0995]
[1745217036693,0.05030853,140.88,140.85,0.05069117]
[1745217036898,7.14950853,140.88,140.85,0.05069117]
[1745217037498,0.05030853,140.88,140.85,7.15079117]
[1745217037899,0.05030853,140.88,140.86,7.0995]
[1745217043703,0.05030853,140.88,140.87,7.0993]
[1745217046602,0.05030853,140.88,140.86,7.0996]
[1745217049609,0.05030853,140.88,140.85,13.24252678]
[1745217049908,0.05030853,140.88,140.85,7.15079117]
[1745217050204,0.05030853,140.88,140.85,0.05069117]
[1745217052206,0.05030853,140.88,140.85,7.15059117]
[1745217052411,0.05030853,140.88,140.85,6.14242678]
[1745217053212,0.05030853,140.88,140.87,7.0993]
[1745217053712,0.05030853,140.88,140.85,6.14242678]
[1745217054010,0.05030853,140.88,140.86,7.0996]
[1745217055414,0.05030853,140.88,140.85,13.24252678]
[1745217056016,0.05030853,140.88,140.86,7.0997]
[1745217056515,0.05030853,140.88,140.85,6.14242678]
[1745217056714,0.05030853,140.88,140.86,7.0998]
[1745217057315,0.05030853,140.88,140.87,7.0993]
[1745217058712,34.31173561,141.05,140.87,41.41173561]
[1745217058912,6.09173561,141.04,140.98,6.09173561]
[1745217059117,69.05182197,141.06,141.02,7.0917]
[1745217059317,67.02342197,141.06,141.01,6.09173561]
[1745217059518,75.20342197,141.06,141.01,6.09173561]
[1745217059718,6.14155504,141.05,141.02,0.05456561]
[1745217060119,6.09173561,141.03,141.02,0.05456561]
[1745217060321,6.09173561,141.03,140.97,8.07283561]
[1745217061420,0.0486624,141.01,140.99,0.04912828]
[1745217062118,0.0486624,141.01,140.99,7.14202828]
[1745217062516,0.0486624,141.01,141.0,7.0927]
[1745217077224,28.22,141.04,141.02,7.0914]
[1745217077429,28.22,141.04,141.02,13.18313561]
[1745217078435,28.2702792,141.04,141.02,13.18313561]
[1745217082638,28.2702792,141.04,141.03,7.0912]
[1745217083148,0.0502792,141.04,141.03,7.0912]
[1745217097860,8.18,141.06,141.05,7.0902]
[1745217100360,28.16,141.1,141.04,6.09173561]
[1745217100559,28.16,141.1,141.08,6.09173561]
[1745217101359,28.16,141.1,141.08,13.18023561]
[1745217101555,28.21301739,141.1,141.08,13.22804762]
[1745217105063,0.05301739,141.1,141.09,7.0882]
[1745217109162,5.17,141.12,141.11,7.0872]
[1745217109358,28.1,141.17,141.11,6.09173561]
[1745217109661,28.1,141.17,141.14,6.09173561]
[1745217109955,28.1,141.17,141.14,13.17713561]
[1745217110362,28.14563145,141.17,141.14,13.22356244]
[1745217112161,35.22983145,141.17,141.14,13.22356244]
[1745217112362,28.14563145,141.17,141.15,7.0851]
[1745217112661,28.14563145,141.17,141.14,6.13816244]
[1745217113162,28.14563145,141.17,141.14,13.22356244]
[1745217113462,0.04563145,141.17,141.16,6.09173561]
[1745217113862,0.04563145,141.17,141.16,13.17643561]
[1745217114462,37.74,141.21,141.2,7.0827]
[1745217114661,9.64,141.21,141.2,13.17443561]
[1745217114861,9.64,141.21,141.2,6.09173561]
[1745217115455,7.0812,141.23,141.2,6.09173561]
[1745217115456,0.04726497,141.22,141.2,6.09173561]
[1745217115660,7.12926497,141.22,141.2,6.09173561]
[1745217116366,7.0823,141.21,141.19,6.14500497]
[1745217116663,0.04726497,141.22,141.19,0.05326936]
[1745217117166,7.0822,141.21,141.19,0.05326936]
[1745217120466,7.0827,141.2,141.19,0.05326936]
[1745217121266,7.0824,141.21,141.19,0.05326936]
[1745217121467,0.04726497,141.22,141.19,0.05326936]
[1745217123266,7.0823,141.21,141.19,0.05326936]
[1745217123761,0.04726497,141.22,141.19,0.05326936]
[1745217124867,7.0827,141.2,141.19,0.05326936]
[1745217125669,7.0824,141.21,141.19,0.05326936]
[1745217126169,7.0827,141.2,141.19,0.05326936]
[1745217126769,7.0824,141.21,141.19,0.05326936]
[1745217129172,7.0827,141.2,141.19,0.05326936]
[1745217129866,6.13900058,141.22,141.15,6.09173561]
[1745217130073,34.17173561,141.2,141.14,6.09173561]
[1745217131074,0.05100144,141.18,141.16,0.05199718]
[1745217132274,7.13470144,141.18,141.16,0.05199718]
[1745217133968,7.0842,141.17,141.16,0.05199718]
[1745217138683,13.22653705,141.18,141.16,0.05199718]
[1745217140685,7.0842,141.17,141.16,0.05199718]
[1745217141287,6.14273705,141.18,141.11,6.09173561]
[1745217141485,6.09173561,141.16,141.11,13.17853561]
[1745217141785,34.15173561,141.16,141.11,13.17853561]
[1745217142385,7.13843375,141.15,141.12,7.1394887]
[1745217143584,7.13843375,141.15,141.12,0.0527887]
[1745217143987,0.05293375,141.15,141.12,0.0527887]
[1745217144687,0.05293375,141.15,141.12,7.1392887]
[1745217146790,0.05293375,141.15,141.13,7.0861]
[1745217147489,0.05293375,141.15,141.12,7.1392887]